lending/lending_fUSD_20241211
["ID","MTS","AMOUNT","RATE_DAILY","PERIOD"]
[344927248,1733889030360,-501.48422715,9.973e-05,2]
[344927249,1733889030381,-500.0,9.973e-05,2]
[344927250,1733889030402,-500.0,9.973e-05,2]
[344927251,1733889030426,-406.26351083,9.973e-05,2]
[344927252,1733889030447,-155.26208261,9.986e-05,2]
[344927253,1733889030468,-1000.0,9.999e-05,2]
[344927254,1733889030490,-742.00746376,9.999e-05,2]
[344927255,1733889030512,-2040.78,9.999e-05,2]
[344927256,1733889030535,-500.0,9.999e-05,2]
[344927257,1733889030557,-506.30621791,9.999e-05,2]
[344927258,1733889030579,-161.4396823,9.999e-05,2]
[344927259,1733889030600,-187.97387593,9.999e-05,2]
[344927260,1733889030624,-172.46914601,9.999e-05,2]
[344927261,1733889030648,-500.0,9.999e-05,2]
[344927262,1733889030673,-569.28354469,9.999e-05,2]
[344927263,1733889030694,-405.08536357,9.999e-05,2]
[344927264,1733889030716,-214.456,9.999e-05,2]
[344927265,1733889030740,-223496.29941241,0.0001,2]
[344927279,1733889032199,-591.64145053,0.0001,2]
[344927280,1733889032213,-500.0,0.0001,2]
[344927281,1733889032447,-22184.65533766,0.0001,2]
[344927298,1733889038002,-150.0,9.998e-05,2]
[344927299,1733889038011,-4220.55420915,0.0001,2]
[344927300,1733889038023,-18602.2246672,0.0001,2]
[344927301,1733889038034,-16848.86591204,0.0001,2]
[344927302,1733889038046,-40637.83854085,0.0001,2]
[344927303,1733889038302,-13626.47147605,0.0001,2]
[344927306,1733889038314,-28649.64035784,0.0001,2]
[344927308,1733889038326,-7746.36312,0.0001,2]
[344927484,1733889040252,-150.0,9.998e-05,2]
[344927486,1733889040262,-1157991.43394346,0.0001,2]
[344927488,1733889040272,-310252.39412913,0.0001,2]
[344927490,1733889040282,-3000.0,0.0001,2]
[344927492,1733889040292,-425.78390439,0.0001,2]
[344927493,1733889040301,-991.02,0.0001,2]
[344927496,1733889040317,-1004.73,0.00010007,2]
[344927498,1733889040331,-994.81,0.00010032,2]
[344927500,1733889040341,-1011.33,0.0001006,2]
[344927502,1733889040351,-980.59,0.00010095,2]
[344927504,1733889040361,-1017.33,0.00010129,2]
[344927506,1733889040371,-998.36,0.00010178,2]
[344927508,1733889040380,-991.61,0.00010193,2]
[344927510,1733889040390,-1006.72,0.0001021,2]
[344927512,1733889040400,-998.18,0.00010235,2]
[344927514,1733889040409,-3000.0,0.0001024,2]
[344927515,1733889040419,-428.12202715,0.0001024,2]
[344927517,1733889040430,-1003.23,0.00010273,2]
[344927519,1733889040440,-168.0,0.00010326,2]
[344927521,1733889040450,-1005.65,0.00010329,2]
[344927523,1733889040459,-1011.75,0.0001036,2]
[344927525,1733889040469,-997.74,0.000104,2]
[344927527,1733889040479,-526.03,0.00010433,2]
[344927529,1733889040489,-344.818,0.0001045,2]
[344927531,1733889040498,-428.12202715,0.00010499,2]
[344927533,1733889040508,-3000.0,0.0001056,2]
[344927535,1733889040518,-200.0,0.000106,3]
[344927537,1733889040528,-995.38,0.00010601,2]
[344927538,1733889040538,-150.0,0.00010603,2]
[344927540,1733889040548,-1000.0,0.0001065,2]
[344927542,1733889040558,-284.49,0.00010667,2]
[344927544,1733889040568,-200.0,0.000107,3]
[344927546,1733889040577,-732.99,0.00010749,2]
[344927548,1733889040587,-405.276,0.00010765,2]
[344927550,1733889040597,-3879.0,0.00010765,2]
[344927552,1733889040607,-150.0,0.00010765,2]
[344927554,1733889040616,-150.0,0.00010765,2]
[344927556,1733889040626,-1000.0,0.000108,2]
[344927558,1733889040640,-1000.0,0.000108,2]
[344927560,1733889040649,-1000.0,0.000108,2]
[344927562,1733889040659,-1000.0,0.000108,2]
[344927563,1733889040669,-1000.0,0.000108,2]
[344927564,1733889040679,-1000.0,0.000108,2]
[344927565,1733889040689,-1000.0,0.000108,2]
[344927566,1733889040698,-891.0,0.000108,3]
[344927567,1733889040707,-171.82,0.00010813,2]
[344927568,1733889040721,-366.799322,0.00010824,2]
[344927569,1733889040731,-310.18519604,0.00010858,2]
[344927570,1733889040740,-3000.0,0.0001088,2]
[344927571,1733889040749,-3039.0359,0.00010895,2]
[344927572,1733889040759,-310.18519604,0.00010929,2]
[344927573,1733889040769,-428.12202715,0.00010951,2]
[344927574,1733889040778,-607.26,0.00010957,2]
[344927575,1733889040787,-500.0,0.00010958,2]
[344927577,1733889040797,-500.0,0.00010958,2]
[344927579,1733889040807,-500.0,0.00010958,2]
[344927581,1733889040817,-500.0,0.00010958,2]
[344927583,1733889040828,-500.0,0.00010958,2]
[344927585,1733889040837,-500.0,0.00010958,2]
[344927587,1733889040848,-500.0,0.00010958,2]
[344927589,1733889040857,-500.0,0.00010958,2]
[344927591,1733889040867,-500.0,0.00010958,2]
[344927593,1733889040877,-500.0,0.00010958,2]
[344927595,1733889040888,-500.0,0.00010958,2]
[344927597,1733889040900,-500.0,0.00010958,2]
[344927599,1733889040910,-500.0,0.00010958,2]
[344927602,1733889040921,-500.0,0.00010958,2]
[344927604,1733889040932,-500.0,0.00010958,2]
[344927606,1733889040942,-500.0,0.00010958,2]
[344927608,1733889040952,-500.0,0.00010958,2]
[344927610,1733889040962,-500.0,0.00010958,2]
[344927611,1733889040974,-245.06942212,0.00010958,2]
[344927614,1733889040985,-500.0,0.00010958,2]
[344927616,1733889040995,-500.0,0.00010958,2]
[344927618,1733889041004,-500.0,0.00010958,2]
[344927619,1733889041014,-500.0,0.00010958,2]
[344927622,1733889041024,-226.31617112,0.00010958,2]
[344927624,1733889041034,-500.0,0.00010958,2]
[344927626,1733889041044,-500.0,0.00010958,2]
[344927628,1733889041053,-500.0,0.00010958,2]
[344927630,1733889041063,-500.0,0.00010958,2]
[344927632,1733889041072,-500.0,0.00010958,2]
[344927633,1733889041082,-500.0,0.00010958,2]
[344927635,1733889041092,-500.0,0.00010958,2]
[344927637,1733889041101,-500.0,0.00010958,2]
[344927639,1733889041111,-500.0,0.00010958,2]
[344927641,1733889041120,-305.3706519,0.00010958,2]
[344927643,1733889041130,-502.24022055,0.00010958,2]
[344927645,1733889041140,-502.24756769,0.00010958,2]
[344927648,1733889041151,-506.0623874,0.00010958,2]
[344927650,1733889041160,-501.19684225,0.00010958,2]
[344927651,1733889041170,-502.6224833,0.00010958,2]
[344927654,1733889041180,-501.35711503,0.00010958,2]
[344927656,1733889041189,-500.0,0.00010958,2]
[344927658,1733889041199,-366.70978571,0.00010958,2]
[344927660,1733889041208,-416.86912136,0.00010958,2]
[344927662,1733889041218,-500.89125673,0.00010958,2]
[344927663,1733889041227,-500.0,0.00010958,2]
[344927665,1733889041237,-501.49862725,0.00010958,2]
[344927668,1733889041246,-501.74302559,0.00010958,2]
[344927670,1733889041256,-501.19118738,0.00010958,2]
[344927672,1733889041266,-505.39625096,0.00010958,2]
[344927674,1733889041275,-501.1666071,0.00010958,2]
[344927676,1733889041285,-500.0,0.00010958,2]
[344927678,1733889041295,-500.0,0.00010958,2]
[344927680,1733889041304,-452.32173135,0.00010958,2]
[344927682,1733889041313,-500.55153432,0.00010958,2]
[344927684,1733889041324,-500.0,0.00010958,2]
[344927686,1733889041334,-158.76296782,0.00010958,2]
[344927688,1733889041344,-500.0,0.00010958,2]
[344927690,1733889041354,-501.18444685,0.00010958,2]
[344927692,1733889041363,-510.65282238,0.00010958,2]
[344927694,1733889041373,-501.53885686,0.00010958,2]
[344927696,1733889041383,-500.0,0.00010958,2]
[344927698,1733889041392,-500.0,0.00010958,2]
[344927700,1733889041401,-156.73866146,0.00010958,2]
[344927702,1733889041411,-500.89474631,0.00010958,2]
[344927704,1733889041420,-500.0,0.00010958,2]
[344927706,1733889041433,-500.0,0.00010958,2]
[344927708,1733889041446,-500.7192734,0.00010958,2]
[344927710,1733889041456,-507.51,0.00010958,2]
[344927712,1733889041466,-500.0,0.00010958,2]
[344927714,1733889041475,-500.0,0.00010958,2]
[344927716,1733889041485,-500.0,0.00010958,2]
[344927718,1733889041494,-500.0,0.00010958,2]
[344927720,1733889041504,-308.20743096,0.00010958,2]
[344927722,1733889041514,-500.92274149,0.00010958,2]
[344927724,1733889041523,-511.57816115,0.00010958,2]
[344927726,1733889041532,-500.50524427,0.00010958,2]
[344927728,1733889041542,-500.0,0.00010958,2]
[344927730,1733889041551,-304.2250523,0.00010958,2]
[344927732,1733889041561,-500.0,0.00010958,2]
[344927734,1733889041570,-500.0,0.00010958,2]
[344927736,1733889041581,-500.0,0.00010958,2]
[344927738,1733889041590,-500.0,0.00010958,2]
[344927740,1733889041600,-406.51188243,0.00010958,2]
[344927742,1733889041610,-500.0,0.00010958,2]
[344927744,1733889041619,-500.0,0.00010958,2]
[344927746,1733889041629,-500.0,0.00010958,2]
[344927748,1733889041638,-500.0,0.00010958,2]
[344927750,1733889041647,-501.37414008,0.00010958,2]
[344927752,1733889041658,-500.0,0.00010958,2]
[344927754,1733889041667,-500.0,0.00010958,2]
[344927757,1733889041679,-500.0,0.00010958,2]
[344927758,1733889041688,-500.0,0.00010958,2]
[344927760,1733889041698,-500.0,0.00010958,2]
[344927763,1733889041708,-472.5305762,0.00010958,2]
[344927765,1733889041719,-500.0,0.00010958,2]
[344927766,1733889041729,-500.0,0.00010958,2]
[344927769,1733889041740,-500.0,0.00010958,2]
[344927771,1733889041750,-500.0,0.00010958,2]
[344927773,1733889041761,-500.0,0.00010958,2]
[344927775,1733889041770,-500.0,0.00010958,2]
[344927776,1733889041779,-500.0,0.00010958,2]
[344927779,1733889041789,-500.0,0.00010958,2]
[344927781,1733889041798,-500.0,0.00010958,2]
[344927782,1733889041808,-500.0,0.00010958,2]
[344927785,1733889041819,-500.0,0.00010958,2]
[344927787,1733889041828,-275.75215277,0.00010958,2]
[344927789,1733889041838,-501.08774527,0.00010958,2]
[344927790,1733889041848,-501.18917035,0.00010958,2]
[344927792,1733889041858,-501.77445436,0.00010958,2]
[344927794,1733889041868,-500.0,0.00010958,2]
[344927796,1733889041877,-507.89133132,0.00010958,2]
[344927798,1733889041888,-500.64954387,0.00010958,2]
[344927801,1733889041902,-501.71588088,0.00010958,2]
[344927803,1733889041912,-583.43,0.00010958,2]
[344927805,1733889041921,-583.43,0.00010958,2]
[344927807,1733889041932,-583.43,0.00010958,2]
[344927808,1733889041941,-583.43,0.00010958,2]
[344927810,1733889041951,-583.43,0.00010958,2]
[344927812,1733889041961,-583.43,0.00010958,2]
[344927814,1733889041972,-583.43,0.00010958,2]
[344927816,1733889041981,-583.43,0.00010958,2]
[344927818,1733889041991,-583.43,0.00010958,2]
[344927820,1733889042000,-583.43,0.00010958,2]
[344927822,1733889042010,-583.43,0.00010958,2]
[344927824,1733889042020,-583.43,0.00010958,2]
[344927826,1733889042029,-583.43,0.00010958,2]
[344927828,1733889042039,-583.43,0.00010958,2]
[344927830,1733889042049,-500.0,0.00010958,2]
[344927832,1733889042058,-609.84357801,0.00010958,2]
[344927834,1733889042068,-501.61997313,0.00010958,2]
[344927836,1733889042078,-500.0,0.00010958,2]
[344927838,1733889042087,-501.08326193,0.00010958,2]
[344927840,1733889042096,-500.0,0.00010958,2]
[344927842,1733889042106,-548.54870813,0.00010958,2]
[344927844,1733889042115,-529.67377206,0.00010958,2]
[344927846,1733889042125,-580.52790995,0.00010958,2]
[344927848,1733889042134,-500.41093072,0.00010958,2]
[344927850,1733889042144,-502.2120226,0.00010958,2]
[344927852,1733889042153,-501.73354126,0.00010958,2]
[344927854,1733889042163,-501.47182635,0.00010958,2]
[344927856,1733889042172,-500.40685949,0.00010958,2]
[344927858,1733889042183,-500.87321593,0.00010958,2]
[344927860,1733889042192,-500.0,0.00010958,2]
[344927862,1733889042202,-502.69758107,0.00010958,2]
[344927864,1733889042212,-263.8421806,0.00010958,2]
[344927866,1733889042222,-500.82244949,0.00010958,2]
[344927868,1733889042231,-500.0,0.00010958,2]
[344927870,1733889042241,-573.94042923,0.00010958,2]
[344927872,1733889042250,-501.27958611,0.00010958,2]
[344927874,1733889042260,-501.81262293,0.00010958,2]
[344927876,1733889042270,-503.49904622,0.00010958,2]
[344927878,1733889042280,-501.50542899,0.00010958,2]
[344927880,1733889042289,-501.24343005,0.00010958,2]
[344927882,1733889042299,-500.0,0.00010958,2]
[344927884,1733889042309,-500.83045229,0.00010958,2]
[344927886,1733889042319,-500.0,0.00010958,2]
[344927888,1733889042329,-509.20681397,0.00010958,2]
[344927890,1733889042338,-500.0,0.00010958,2]
[344927892,1733889042347,-501.17203417,0.00010958,2]
[344927894,1733889042357,-500.0,0.00010958,2]
[344927896,1733889042367,-525.90497001,0.00010958,2]
[344927898,1733889042376,-500.0,0.00010958,2]
[344927900,1733889042386,-501.87608757,0.00010958,2]
[344927902,1733889042396,-209.7479634,0.00010958,2]
[344927904,1733889042406,-536.29371908,0.00010958,2]
[344927906,1733889042416,-500.83423772,0.00010958,2]
[344927908,1733889042426,-500.0,0.00010958,2]
[344927910,1733889042437,-509.3441329,0.00010958,2]
[344927912,1733889042447,-500.97766999,0.00010958,2]
[344927914,1733889042457,-521.53710871,0.00010958,2]
[344927917,1733889042467,-507.2564705,0.00010958,2]
[344927918,1733889042477,-500.72128154,0.00010958,2]
[344927920,1733889042486,-434.01685098,0.00010958,2]
[344927922,1733889042496,-500.82871703,0.00010958,2]
[344927924,1733889042506,-503.42028448,0.00010958,2]
[344927926,1733889042515,-500.0,0.00010958,2]
[344927928,1733889042525,-384.94011084,0.00010958,2]
[344927930,1733889042534,-500.87921393,0.00010958,2]
[344927932,1733889042544,-556.87603297,0.00010958,2]
[344927935,1733889042553,-500.9020295,0.00010958,2]
[344927937,1733889042563,-500.81121269,0.00010958,2]
[344927939,1733889042573,-546.25113469,0.00010958,2]
[344927941,1733889042583,-500.46151224,0.00010958,2]
[344927943,1733889042594,-500.0,0.00010958,2]
[344927945,1733889042604,-239.09679988,0.00010958,2]
[344927948,1733889042614,-500.60107556,0.00010958,2]
[344927950,1733889042625,-513.50205892,0.00010958,2]
[344927952,1733889042635,-500.0,0.00010958,2]
[344927954,1733889042644,-571.97024552,0.00010958,2]
[344927955,1733889042654,-501.30224382,0.00010958,2]
[344927957,1733889042663,-574.45910437,0.00010958,2]
[344927959,1733889042673,-500.69804138,0.00010958,2]
[344927962,1733889042684,-308.78078732,0.00010958,2]
[344927963,1733889042693,-592.65797221,0.00010958,2]
[344927966,1733889042704,-507.29902577,0.00010958,2]
[344927968,1733889042714,-500.87321076,0.00010958,2]
[344927970,1733889042724,-170.53737281,0.00010958,2]
[344927972,1733889042734,-500.0,0.00010958,2]
[344927974,1733889042744,-500.0,0.00010958,2]
[344927976,1733889042753,-500.0,0.00010958,2]
[344927978,1733889042762,-500.0,0.00010958,2]
[344927980,1733889042772,-460.13,0.00010958,2]
[344927982,1733889042782,-511.6738794,0.00010958,2]
[344927984,1733889042793,-500.80264479,0.00010958,2]
[344927986,1733889042802,-522.21890109,0.00010958,2]
[344927988,1733889042812,-512.65286767,0.00010958,2]
[344927990,1733889042822,-502.01714946,0.00010958,2]
[344927992,1733889042831,-500.0,0.00010958,2]
[344927994,1733889042840,-500.0,0.00010958,2]
[344927997,1733889042850,-500.0,0.00010958,2]
[344927999,1733889042860,-434.70423804,0.00010958,2]
[344928002,1733889042870,-503.34043987,0.00010958,2]
[344928006,1733889042880,-500.0,0.00010958,2]
[344928009,1733889042891,-502.52361023,0.00010958,2]
[344928011,1733889042903,-381.32814178,0.00010958,2]
[344928013,1733889042912,-565.49878523,0.00010958,2]
[344928015,1733889042921,-572.04014282,0.00010958,2]
[344928017,1733889042931,-509.76556041,0.00010958,2]
[344928018,1733889042942,-501.49441235,0.00010958,2]
[344928021,1733889042952,-511.65184474,0.00010958,2]
[344928023,1733889042962,-507.73156631,0.00010958,2]
[344928025,1733889042976,-500.0,0.00010958,2]
[344928027,1733889042987,-500.0,0.00010958,2]
[344928029,1733889042996,-491.95,0.00010958,2]
[344928031,1733889043006,-500.0,0.00010958,2]
[344928033,1733889043015,-504.68930819,0.00010958,2]
[344928036,1733889043026,-500.0,0.00010958,2]
[344928038,1733889043036,-500.26038107,0.00010958,2]
[344928040,1733889043045,-500.0,0.00010958,2]
[344928042,1733889043055,-620.85523137,0.00010958,2]
[344928044,1733889043064,-499.99878558,0.00010958,2]
[344928046,1733889043074,-500.0,0.00010958,2]
[344928048,1733889043084,-253.39502438,0.00010958,2]
[344928050,1733889043093,-502.15446707,0.00010958,2]
[344928052,1733889043103,-500.0,0.00010958,2]
[344928054,1733889043113,-334.50887726,0.00010958,2]
[344928056,1733889043123,-500.82178774,0.00010958,2]
[344928058,1733889043132,-528.36254294,0.00010958,2]
[344928060,1733889043142,-500.49983773,0.00010958,2]
[344928062,1733889043152,-500.0,0.00010958,2]
[344928064,1733889043162,-500.0,0.00010958,2]
[344928066,1733889043172,-500.0,0.00010958,2]
[344928068,1733889043182,-505.41277692,0.00010958,2]
[344928070,1733889043192,-206.96248481,0.00010958,2]
[344928072,1733889043202,-503.59204786,0.00010958,2]
[344928074,1733889043211,-506.94504065,0.00010958,2]
[344928076,1733889043221,-500.0,0.00010958,2]
[344928078,1733889043231,-457.38804501,0.00010958,2]
[344928080,1733889043241,-501.12224993,0.00010958,2]
[344928082,1733889043250,-618.03193825,0.00010958,2]
[344928084,1733889043259,-500.65751441,0.00010958,2]
[344928085,1733889043269,-624.53990238,0.00010958,2]
[344928087,1733889043278,-500.896146,0.00010958,2]
[344928089,1733889043289,-500.0,0.00010958,2]
[344928091,1733889043299,-503.82077318,0.00010958,2]
[344928093,1733889043308,-500.0,0.00010958,2]
[344928095,1733889043318,-150.73547227,0.00010958,2]
[344928097,1733889043328,-500.90204826,0.00010958,2]
[344928099,1733889043338,-632.22034486,0.00010958,2]
[344928101,1733889043348,-501.05110963,0.00010958,2]
[344928103,1733889043359,-623.88882596,0.00010958,2]
[344928105,1733889043369,-501.22248085,0.00010958,2]
[344928107,1733889043379,-500.0,0.00010958,2]
[344928109,1733889043389,-215.04237089,0.00010958,2]
[344928111,1733889043398,-500.50283969,0.00010958,2]
[344928113,1733889043408,-500.66860393,0.00010958,2]
[344928115,1733889043417,-510.42200861,0.00010958,2]
[344928117,1733889043427,-500.42563187,0.00010958,2]
[344928119,1733889043441,-596.63696331,0.00010958,2]
[344928120,1733889043451,-500.0,0.00010958,2]
[344928121,1733889043462,-501.7060226,0.00010958,2]
[344928122,1733889043472,-500.57401365,0.00010958,2]
[344928123,1733889043483,-502.07444586,0.00010958,2]
[344928124,1733889043494,-500.0,0.00010958,2]
[344928125,1733889043505,-309.71,0.00010958,2]
[344928126,1733889043514,-525.25108069,0.00010958,2]
[344928127,1733889043524,-501.20167817,0.00010958,2]
[344928128,1733889043534,-500.0,0.00010958,2]
[344928130,1733889043544,-308.12098908,0.00010958,2]
[344928132,1733889043554,-500.0,0.00010958,2]
[344928134,1733889043565,-500.0,0.00010958,2]
[344928136,1733889043575,-500.0,0.00010958,2]
[344928138,1733889043585,-535.74726505,0.00010958,2]
[344928140,1733889043595,-500.0,0.00010958,2]
[344928142,1733889043605,-614.64772674,0.00010958,2]
[344928144,1733889043615,-500.0,0.00010958,2]
[344928146,1733889043627,-504.74229259,0.00010958,2]
[344928148,1733889043637,-501.77079142,0.00010958,2]
[344928150,1733889043647,-500.46176628,0.00010958,2]
[344928152,1733889043657,-500.0,0.00010958,2]
[344928154,1733889043667,-155.51828684,0.00010958,2]
[344928156,1733889043677,-500.22199262,0.00010958,2]
[344928158,1733889043694,-833.09,0.00010958,2]
[344928160,1733889043703,-833.09,0.00010958,2]
[344928163,1733889043714,-833.09,0.00010958,2]
[344928165,1733889043724,-833.09,0.00010958,2]
[344928167,1733889043735,-833.09,0.00010958,2]
[344928169,1733889043745,-833.09,0.00010958,2]
[344928171,1733889043755,-833.09,0.00010958,2]
[344928173,1733889043766,-833.09,0.00010958,2]
[344928175,1733889043775,-833.09,0.00010958,2]
[344928177,1733889043784,-833.09,0.00010958,2]
[344928179,1733889043794,-833.09,0.00010958,2]
[344928181,1733889043804,-833.09,0.00010958,2]
[344928183,1733889043815,-833.09,0.00010958,2]
[344928185,1733889043825,-500.36637381,0.00010958,2]
[344928187,1733889043836,-833.09,0.00010958,2]
[344928189,1733889043846,-833.09,0.00010958,2]
[344928191,1733889043857,-500.0,0.00010958,2]
[344928193,1733889043867,-500.0,0.00010958,2]
[344928195,1733889043877,-500.0,0.00010958,2]
[344928197,1733889043887,-500.47559606,0.00010958,2]
[344928199,1733889043900,-500.0,0.00010958,2]
[344928201,1733889043910,-500.0,0.00010958,2]
[344928203,1733889043920,-500.0,0.00010958,2]
[344928205,1733889043929,-1074.23,0.00010958,2]
[344928207,1733889043946,-500.0,0.00010958,2]
[344928209,1733889043957,-1074.23,0.00010958,2]
[344928211,1733889043968,-500.0,0.00010958,2]
[344928213,1733889043978,-1074.23,0.00010958,2]
[344928216,1733889043988,-401.85088673,0.00010958,2]
[344928218,1733889043998,-1074.23,0.00010958,2]
[344928220,1733889044007,-1074.23,0.00010958,2]
[344928222,1733889044016,-1074.23,0.00010958,2]
[344928224,1733889044026,-1074.23,0.00010958,2]
[344928226,1733889044035,-1074.23,0.00010958,2]
[344928228,1733889044045,-1074.23,0.00010958,2]
[344928231,1733889044055,-500.0,0.00010958,2]
[344928233,1733889044064,-500.0,0.00010958,2]
[344928234,1733889044074,-1074.23,0.00010958,2]
[344928237,1733889044084,-500.0,0.00010958,2]
[344928239,1733889044094,-500.0,0.00010958,2]
[344928240,1733889044103,-1074.23,0.00010958,2]
[344928243,1733889044113,-500.0,0.00010958,2]
[344928244,1733889044122,-500.0,0.00010958,2]
[344928246,1733889044131,-1074.23,0.00010958,2]
[344928249,1733889044141,-500.0,0.00010958,2]
[344928251,1733889044151,-500.0,0.00010958,2]
[344928253,1733889044160,-1074.23,0.00010958,2]
[344928255,1733889044170,-500.0,0.00010958,2]
[344928257,1733889044179,-1074.23,0.00010958,2]
[344928259,1733889044192,-500.0,0.00010958,2]
[344928261,1733889044201,-500.0,0.00010958,2]
[344928262,1733889044211,-1074.23,0.00010958,2]
[344928264,1733889044220,-573.88033529,0.00010958,2]
[344928267,1733889044230,-500.0,0.00010958,2]
[344928269,1733889044240,-497.76759895,0.00010958,2]
[344928271,1733889044250,-499.28832979,0.00010958,2]
[344928273,1733889044260,-500.28032076,0.00010958,2]
[344928275,1733889044270,-500.0,0.00010958,2]
[344928277,1733889044279,-500.17133611,0.00010958,2]
[344928279,1733889044289,-500.0,0.00010958,2]
[344928281,1733889044298,-501.3722389,0.00010958,2]
[344928283,1733889044308,-500.0,0.00010958,2]
[344928285,1733889044317,-500.0,0.00010958,2]
[344928287,1733889044327,-554.08410193,0.00010958,2]
[344928289,1733889044336,-500.0,0.00010958,2]
[344928311,1733889044532,-480.07798861,0.00010958,2]
[344928313,1733889044542,-500.0,0.00010958,2]
[344928315,1733889044552,-500.36713559,0.00010958,2]
[344928317,1733889044561,-500.0,0.00010958,2]
[344928319,1733889044574,-500.0,0.00010958,2]
[344928321,1733889044584,-502.1593987,0.00010958,2]
[344928323,1733889044594,-500.0,0.00010958,2]
[344928325,1733889044604,-607.68984861,0.00010958,2]
[344928327,1733889044613,-500.70868365,0.00010958,2]
[344928329,1733889044622,-500.0,0.00010958,2]
[344928331,1733889044632,-500.0,0.00010958,2]
[344928333,1733889044641,-500.0,0.00010958,2]
[344928335,1733889044651,-247.27773769,0.00010958,2]
[344928337,1733889044660,-641.83,0.00010958,2]
[344928339,1733889044670,-500.40016203,0.00010958,2]
[344928341,1733889044680,-641.83,0.00010958,2]
[344928343,1733889044696,-641.83,0.00010958,2]
[344928346,1733889044709,-641.83,0.00010958,2]
[344928348,1733889044718,-641.83,0.00010958,2]
[344928350,1733889044728,-641.83,0.00010958,2]
[344928352,1733889044737,-500.0,0.00010958,2]
[344928354,1733889044746,-641.83,0.00010958,2]
[344928356,1733889044756,-363.66,0.00010958,2]
[344928358,1733889044766,-641.83,0.00010958,2]
[344928360,1733889044776,-500.24632137,0.00010958,2]
[344928362,1733889044785,-641.83,0.00010958,2]
[344928364,1733889044795,-641.83,0.00010958,2]
[344928366,1733889044804,-641.83,0.00010958,2]
[344928368,1733889044814,-641.83,0.00010958,2]
[344928370,1733889044824,-641.83,0.00010958,2]
[344928372,1733889044834,-641.83,0.00010958,2]
[344928374,1733889044844,-641.83,0.00010958,2]
[344928376,1733889044854,-500.38382336,0.00010958,2]
[344928378,1733889044864,-501.21855393,0.00010958,2]
[344928380,1733889044874,-500.579368,0.00010958,2]
[344928382,1733889044883,-500.56474254,0.00010958,2]
[344928384,1733889044895,-638.97228369,0.00010958,2]
[344928386,1733889044905,-500.76149539,0.00010958,2]
[344928388,1733889044915,-500.0,0.00010958,2]
[344928389,1733889044925,-500.0,0.00010958,2]
[344928392,1733889044935,-467.5274545,0.00010958,2]
[344928394,1733889044945,-500.30961417,0.00010958,2]
[344928396,1733889044955,-500.0,0.00010958,2]
[344928398,1733889044965,-500.76859553,0.00010958,2]
[344928400,1733889044976,-500.1845332,0.00010958,2]
[344928402,1733889044986,-500.0,0.00010958,2]
[344928404,1733889044996,-500.0,0.00010958,2]
[344928406,1733889045006,-500.0,0.00010958,2]
[344928408,1733889045016,-500.0,0.00010958,2]
[344928410,1733889045026,-500.0,0.00010958,2]
[344928412,1733889045036,-500.22321604,0.00010958,2]
[344928414,1733889045046,-500.0,0.00010958,2]
[344928416,1733889045055,-500.0,0.00010958,2]
[344928418,1733889045065,-500.0,0.00010958,2]
[344928420,1733889045075,-403.25915287,0.00010958,2]
[344928422,1733889045085,-500.0,0.00010958,2]
[344928424,1733889045094,-500.17788761,0.00010958,2]
[344928426,1733889045104,-500.0,0.00010958,2]
[344928428,1733889045114,-383.66709123,0.00010958,2]
[344928430,1733889045123,-500.0,0.00010958,2]
[344928432,1733889045133,-500.0,0.00010958,2]